bitfinex-derivatives/quotes_ETHF0:USTF0_20240830
["timestamp","ask_amount","ask_price","bid_price","bid_amount"]
[1725042628882,3.2078,2517.3,2516.3,0.00595144]
[1725042628883,7.1806,2517.3,2516.3,0.00595144]
[1725042629072,3.2078,2516.7,2516.3,0.00595144]
[1725042629278,3.2078,2516.4,2516.3,0.00595144]
[1725042629583,3.60525,2516.4,2515.7,0.39756]
[1725042629881,0.39744,2516.5,2515.5,3.2078]
[1725042630080,3.2078,2516.5,2515.5,3.2078]
[1725042630270,3.2078,2516.9,2515.5,3.2078]
[1725042630581,0.00595144,2516.5,2516.4,0.39745]
[1725042630877,0.00595144,2516.5,2515.9,3.21375144]
[1725042630878,0.00595144,2516.5,2516.3,3.2078]
[1725042631090,0.00595144,2516.5,2515.9,0.00595144]
[1725042631280,3.2078,2516.3,2515.9,0.00595144]
[1725042631477,0.39749,2516.2,2515.9,0.00595144]
[1725042631777,0.00595144,2516.5,2516.0,3.9744]
[1725042631982,0.00595144,2516.5,2515.9,0.00595144]
[1725042631983,3.2078,2516.3,2515.9,0.00595144]
[1725042632187,0.39757,2515.7,2515.4,3.2078]
[1725042632378,3.2078,2516.0,2515.4,3.2078]
[1725042632573,3.2078,2516.3,2515.5,3.9752]
[1725042632773,3.2078,2516.3,2515.7,3.2078]
[1725042632975,3.2078,2516.3,2515.2,3.2078]
[1725042633178,3.2078,2516.0,2515.5,0.0039676]
[1725042633380,3.2078,2516.0,2515.7,0.39755]
[1725042633577,3.2078,2516.0,2515.5,0.0039676]
[1725042633780,3.2078,2516.3,2515.6,3.9752]
[1725042633984,0.00595144,2516.5,2515.7,7.1822]
[1725042634175,0.00595144,2516.5,2516.4,0.39745]
[1725042634392,3.2078,2517.9,2516.2,9.1578]
[1725042634579,3.2078,2517.9,2517.1,3.2078]
[1725042634897,3.2078,2517.9,2516.7,3.2078]
[1725042635079,3.2078,2517.2,2516.3,3.2078]
[1725042635385,0.00595144,2517.0,2516.5,0.00595144]
[1725042635582,0.00595144,2517.0,2516.6,3.2078]
[1725042635781,0.00595144,2517.0,2516.5,0.00595144]
[1725042635985,3.60522,2516.6,2516.5,0.00595144]
[1725042636184,7.1814,2516.6,2515.7,3.2078]
[1725042636384,0.39752,2516.0,2515.4,0.3976]
[1725042636682,3.2078,2516.3,2515.3,3.2078]
[1725042636885,3.2078,2516.3,2515.4,0.3976]
[1725042637086,3.2078,2516.4,2515.3,3.2078]
[1725042637285,3.2078,2516.7,2515.6,3.2078]
[1725042637590,4.47809317,2516.3,2515.6,3.2117676]
[1725042637778,3.2078,2516.7,2515.6,3.2117676]
[1725042637779,0.83547495,2516.6,2515.6,3.2117676]
[1725042638080,0.99344,2516.9,2515.6,3.2117676]
[1725042638081,3.2078,2516.5,2515.6,3.2117676]
[1725042638283,3.2078,2516.5,2515.7,0.39755]
[1725042638486,3.2078,2516.5,2515.6,3.2117676]
[1725042638685,0.39747,2516.3,2515.7,0.39755]
[1725042638878,3.2078,2516.5,2515.6,3.2117676]
[1725042639185,0.00595144,2517.0,2516.6,0.39741]
[1725042639586,0.39737,2516.9,2516.1,3.2078]
[1725042639884,0.3975,2516.1,2515.6,0.0039676]
[1725042640088,0.99367,2516.3,2515.6,0.0039676]
[1725042640278,0.99355,2516.6,2515.6,0.0039676]
[1725042640279,0.39756,2515.7,2515.6,0.0039676]
[1725042640787,3.2078,2515.8,2515.6,0.0039676]
[1725042640985,3.2078,2516.7,2515.6,3.9791676]
[1725042641185,0.39756,2515.7,2515.6,0.0039676]
[1725042642273,7.58056,2515.7,2515.6,0.0039676]
[1725042642474,3.2078,2516.3,2515.6,0.0039676]
[1725042642681,0.99363,2516.4,2515.6,0.0039676]
[1725042642682,3.2078,2516.0,2515.6,0.0039676]
[1725042642875,4.36551372,2516.1,2515.7,3.9752]
[1725042643085,4.20149,2516.3,2515.6,0.0039676]
[1725042643386,0.39756,2515.7,2515.6,0.0039676]
[1725042643989,4.37276,2515.7,2515.6,0.0039676]
[1725042644286,0.39758,2515.6,2515.0,3.2078]
[1725042644485,3.2078,2515.9,2515.0,3.2078]
[1725042644682,0.39758,2515.6,2515.2,0.39763]
[1725042645092,0.39759,2515.5,2515.0,3.2078]
[1725042645286,0.39758,2515.6,2515.0,3.2078]
[1725042645491,0.39763,2515.3,2515.0,3.2078]
[1725042645794,0.00596338,2515.7,2515.6,1.39151]
[1725042645983,3.2078,2516.9,2515.6,9.2078]
[1725042646190,0.3975,2516.1,2515.8,0.39753]
[1725042646388,3.2078,2516.3,2515.6,3.2078]
[1725042646588,3.2078,2516.4,2515.6,3.2078]
[1725042646793,3.2078,2516.9,2515.6,3.9744]
[1725042646988,0.3975,2516.1,2515.8,0.39754]
[1725042647193,0.00596338,2516.3,2515.7,0.00596338]
[1725042647390,0.00596338,2516.3,2516.2,0.39748]
[1725042647588,3.2078,2517.1,2516.3,0.99364]
[1725042647790,3.2078,2517.7,2517.0,3.2078]
[1725042647994,3.2078,2517.7,2517.1,0.39733]
[1725042647995,0.39729,2517.5,2517.1,0.39733]
[1725042648196,0.39732,2517.2,2516.9,0.39736]
[1725042648387,0.39732,2517.2,2516.3,9.25735]
[1725042648388,4.26656798,2517.6,2516.4,3.2078]
[1725042648589,3.2078,2517.7,2516.3,2.3137]
[1725042648590,0.00596338,2517.3,2517.0,0.99337]
[1725042648899,0.00596338,2517.3,2517.2,0.39732]
[1725042649091,0.00596338,2517.3,2517.2,6.39732]
[1725042649302,0.00596338,2517.3,2517.2,4.37012]
[1725042649800,0.00596338,2517.3,2517.2,11.36343]
[1725042650098,0.00596338,2517.3,2517.1,0.39732]
[1725042650298,0.00596338,2517.3,2517.0,0.39734]
[1725042650500,0.00596338,2517.3,2516.8,3.2078]
[1725042651097,0.39736,2517.0,2516.7,0.00596338]
[1725042651301,3.2078,2517.1,2516.7,0.00596338]
[1725042651302,3.60515,2517.1,2516.7,0.00596338]
[1725042651699,3.2078,2517.1,2516.7,0.00596338]
[1725042651892,0.00596338,2517.3,2516.8,3.9728]
[1725042652094,0.00596338,2517.3,2517.2,3.60512]
[1725042652295,0.00596338,2517.3,2517.2,7.57792]
[1725042652495,0.00596338,2517.3,2517.2,13.57792]
[1725042652891,0.00596338,2517.3,2517.2,7.57792]
[1725042653293,0.00596338,2517.3,2517.2,13.57792]
[1725042653494,0.00596338,2517.3,2517.2,7.1806]
[1725042655102,0.00596338,2517.3,2516.8,3.2078]
[1725042655494,0.40327338,2517.3,2516.9,0.39736]
[1725042655701,0.00596338,2517.3,2517.0,0.39735]
[1725042656007,0.39736,2517.0,2516.7,0.00596338]
[1725042656699,3.2078,2517.2,2516.7,0.00596338]
[1725042657003,0.39738,2516.8,2516.7,0.00596338]
[1725042657196,0.39738,2516.8,2516.4,3.2078]
[1725042657197,0.99347,2516.8,2516.0,3.2078]
[1725042657396,0.39753,2515.9,2515.7,3.2078]
[1725042657802,3.2078,2516.0,2515.1,0.39764]
[1725042658004,4.20166,2515.8,2515.0,3.2078]
[1725042658211,0.39765,2515.2,2515.0,3.2078]
[1725042658507,0.39761,2515.4,2515.2,0.39764]
[1725042658697,0.39763,2515.3,2515.1,0.00596338]
[1725042658905,0.99394,2515.6,2515.1,0.00596338]
[1725042659109,0.39762,2515.3,2515.1,0.00596338]
[1725042659299,0.39764,2515.2,2515.1,0.00596338]
[1725042659505,1.39174,2515.2,2515.1,0.00596338]
[1725042660308,0.39764,2515.2,2515.1,0.00596338]
[1725042661703,0.3976,2515.5,2515.3,0.39762]
[1725042661912,0.00596338,2515.7,2515.6,0.39757]
[1725042662100,0.39747,2516.3,2516.1,0.39749]
[1725042662307,3.2078,2517.0,2516.4,0.39744]
[1725042662308,4.20122,2517.0,2516.4,0.39744]
[1725042662509,4.20122,2517.0,2515.8,0.99386]
[1725042662510,4.20123,2517.0,2516.2,0.39748]
[1725042662698,4.20123,2517.0,2516.1,3.2078]
[1725042662897,0.39742,2516.6,2516.1,3.2078]
[1725042663208,0.00596338,2516.6,2516.2,0.40229711]
[1725042663402,0.00596338,2516.6,2516.2,0.39748]
[1725042663403,0.99953338,2516.6,2516.2,0.39748]
[1725042663599,3.21376338,2516.6,2516.1,0.00596338]
[1725042663800,0.39748,2516.2,2516.1,0.00596338]
[1725042664108,0.39757,2515.6,2515.4,0.3976]
[1725042664312,0.39757,2515.6,2515.3,0.39761]
[1725042664512,4.20165,2515.9,2515.1,3.2078]
[1725042664702,3.2078,2516.5,2515.4,3.2078]
[1725042664899,0.39748,2516.3,2515.7,3.21376338]
[1725042665101,4.24788476,2516.5,2516.0,3.2078]
[1725042665304,0.00596338,2516.6,2516.3,3.2078]
[1725042665602,0.00596338,2516.6,2516.5,0.39743]
[1725042665803,3.2078,2517.7,2516.5,7.79342209]
[1725042666006,0.39733,2517.2,2516.9,3.2078]
[1725042666200,0.39726,2517.6,2517.4,0.39729]
[1725042666406,3.2078,2517.7,2516.9,3.2078]
[1725042666709,11.79863,2517.8,2517.3,3.2078]
[1725042667014,0.00596338,2517.6,2517.5,0.39727]
[1725042668103,0.00596338,2517.6,2517.5,4.36927]
[1725042668306,11.79863,2517.8,2517.5,9.972]
[1725042668516,11.79863,2517.8,2517.7,3.60504]
[1725042668709,11.79863,2517.8,2517.7,7.57704]
[1725042669109,0.39725,2517.7,2517.4,0.79935118]
[1725042669310,11.79863,2517.8,2517.2,0.40210682]
[1725042669512,0.39728,2517.5,2517.2,0.39731]
[1725042669708,11.80459338,2517.8,2517.1,3.2078]
[1725042669917,11.80459338,2517.8,2517.3,0.3973]
[1725042669918,0.39727,2517.6,2517.3,0.3973]
[1725042670104,11.80459338,2517.8,2517.1,3.2078]
[1725042670309,12.20182338,2517.8,2517.5,0.39726]
[1725042670619,3.2078,2517.6,2515.6,0.63147211]
[1725042670816,0.39747,2516.3,2515.7,0.40230653]
[1725042671009,3.2078,2516.3,2515.5,3.2078]
[1725042671315,1.98649,2517.4,2515.6,0.40224312]
[1725042671316,3.2078,2516.6,2515.6,0.40224312]
[1725042671511,0.39753,2515.9,2515.4,0.7952]
[1725042671708,0.39751,2516.0,2515.8,0.00596338]
[1725042671903,3.2078,2516.3,2515.8,0.00596338]
[1725042672104,1.39135,2515.9,2515.8,0.00596338]
[1725042672320,1.39135,2515.9,2515.1,0.3976]
[1725042672321,0.39766,2515.1,2514.6,3.2078]
[1725042672505,0.39773,2514.7,2514.2,0.39779]
[1725042672705,0.39773,2514.7,2514.0,1.03022468]
[1725042672706,0.39771,2514.8,2514.3,0.80020321]
[1725042672905,0.39771,2514.8,2514.0,0.3984]
[1725042673208,3.2078,2514.6,2514.1,0.40376338]
[1725042673410,3.60554,2514.6,2514.1,0.00596338]
[1725042673614,3.60558,2514.3,2514.1,0.00596338]
[1725042673819,3.2078,2514.3,2514.1,0.00596338]
[1725042674113,0.00596338,2514.7,2514.1,0.00596338]
[1725042674310,3.60555,2514.5,2514.1,0.00596338]
[1725042674709,3.2078,2514.5,2514.1,0.40377338]
[1725042675008,3.60556,2514.5,2514.1,0.00596338]
[1725042675310,3.60555,2514.5,2514.1,0.40377338]
[1725042675510,3.2078,2514.5,2514.1,0.40377338]
[1725042675713,0.00596338,2514.7,2514.1,3.98356338]
[1725042676018,0.00596338,2514.7,2514.2,3.2078]
[1725042676418,1.98752,2516.1,2515.1,0.39765]
[1725042676419,3.2078,2515.4,2515.1,0.39765]
[1725042676713,0.3978,2514.3,2513.9,3.2078]
[1725042676925,0.99434,2514.6,2513.9,3.2078]
[1725042676926,3.2078,2514.5,2513.9,3.2078]
[1725042677113,0.3978,2514.2,2513.9,3.2078]
[1725042678211,4.3754,2514.2,2513.9,3.2078]
[1725042678412,0.3978,2514.2,2513.9,3.2078]
[1725042678618,0.40373338,2514.4,2514.0,0.39783]
[1725042678918,0.00596338,2514.4,2513.9,3.2078]
[1725042679210,3.2078,2514.2,2513.2,3.2078]
[1725042679420,0.40374338,2514.4,2513.5,3.2078]
[1725042679610,0.40373338,2514.4,2514.0,0.39783]
[1725042679807,0.00596338,2514.4,2514.0,0.39783]
[1725042680014,0.00596338,2514.4,2513.4,0.99478]
[1725042680015,0.40373338,2514.4,2513.6,3.2078]
[1725042680208,0.00596338,2514.4,2513.7,0.00596338]
[1725042680413,3.2078,2514.2,2513.7,0.00596338]
[1725042680712,0.00596338,2514.4,2514.3,0.39778]
[1725042680916,0.00596338,2514.4,2514.3,4.37458]
[1725042681522,0.00596338,2514.4,2514.3,11.36904]
[1725042681714,8.2015,2516.4,2514.3,11.36904]
[1725042681715,5.4077,2516.3,2514.3,11.95]
[1725042681920,0.39748,2516.2,2515.8,0.39754]
[1725042682104,0.39746,2516.4,2516.0,0.3975]
[1725042682309,0.39737,2517.0,2515.7,3.2078]
[1725042682511,0.39736,2517.0,2516.6,0.39741]
[1725042682711,0.39737,2516.9,2516.5,3.61118338]
[1725042683107,0.39742,2516.6,2516.5,0.00596338]
[1725042683310,3.2078,2516.8,2516.5,0.00596338]
[1725042683508,4.56069772,2517.0,2516.9,0.39737]
[1725042683712,0.00596338,2517.1,2516.9,3.9728]
[1725042684017,0.00596338,2517.1,2516.5,0.00596338]
[1725042684216,0.39737,2516.9,2516.5,0.00596338]
[1725042684416,0.00596338,2517.1,2516.5,0.00596338]
[1725042684621,0.00596338,2517.1,2516.8,0.39738]
[1725042684822,0.00596338,2517.1,2517.0,0.39735]
[1725042685126,0.00596338,2517.1,2516.9,0.39736]
[1725042685419,0.00596338,2517.1,2517.0,0.39735]
[1725042685819,0.00596338,2517.1,2517.0,11.76114]
[1725042686116,11.79863,2517.8,2517.0,3.9728]
[1725042686117,0.39732,2517.3,2517.0,3.9728]
[1725042686423,0.39732,2517.3,2516.8,0.39738]
[1725042686618,0.39732,2517.2,2516.8,0.39738]
[1725042686812,0.39732,2517.2,2516.7,0.39739]
[1725042687009,3.21376338,2517.2,2516.5,0.00596338]
[1725042687211,3.2078,2517.0,2516.5,0.00596338]
[1725042687512,0.00596338,2517.2,2516.8,0.39738]
[1725042687710,0.00596338,2517.2,2516.5,3.21376338]
[1725042687711,0.00596338,2517.2,2516.9,0.39736]
[1725042688109,0.00596338,2517.2,2516.9,4.37016]
[1725042688519,0.00596338,2517.2,2517.1,0.39734]
[1725042688913,0.00596338,2517.2,2517.1,3.9728]
[1725042689112,0.00596338,2517.2,2516.9,0.39735]
[1725042689317,0.00596338,2517.2,2516.7,0.3974]
[1725042689512,0.3974,2516.7,2516.6,3.2078]
[1725042689711,3.2078,2516.7,2516.5,0.00596338]
[1725042689919,3.2078,2516.6,2515.7,3.6054]
[1725042690218,3.2078,2516.6,2515.4,2.272]
[1725042690219,3.2078,2516.3,2515.4,5.4798]
[1725042690420,0.39753,2515.9,2515.6,0.39756]
[1725042690610,3.2078,2516.0,2515.7,0.39755]
[1725042690816,0.3975,2516.1,2515.7,0.39755]
[1725042691016,3.2078,2516.1,2515.6,0.00596338]
[1725042691322,0.00596338,2516.2,2516.1,0.3975]
[1725042691618,3.2078,2517.2,2516.1,0.3975]
[1725042691812,3.2078,2517.2,2516.5,0.39742]
[1725042692015,0.39734,2517.1,2516.0,3.2078]
[1725042692210,3.60513,2517.2,2516.8,0.39737]
[1725042692411,0.39734,2517.1,2516.8,0.39737]
[1725042692611,3.61110338,2517.2,2516.8,0.39737]
[1725042692817,3.21376338,2517.2,2516.6,0.3974]
[1725042693016,0.39744,2516.5,2516.0,3.2078]
[1725042693223,0.39741,2516.7,2516.4,0.39744]
[1725042693611,3.60518,2516.9,2516.5,0.39742]
[1725042693815,3.21376338,2517.2,2516.3,3.2078]
[1725042694016,0.00596338,2517.2,2517.1,0.39734]
[1725042694218,3.2078,2518.7,2517.7,0.39724]
[1725042694536,3.2078,2518.7,2517.9,0.99303]
[1725042694728,3.2078,2518.7,2518.6,0.3971]
[1725042695128,2.16,2519.6,2518.6,10.96316]
[1725042695428,3.21376338,2519.4,2518.9,0.39704]
[1725042695618,3.21376338,2519.4,2519.2,0.397]
[1725042695815,3.21376338,2519.4,2519.1,0.39701]
[1725042696019,3.21376338,2519.4,2518.6,0.99276]
[1725042696020,0.00596338,2519.4,2518.8,3.2078]
[1725042696327,0.397,2519.3,2518.9,0.39704]
[1725042696822,0.39703,2519.1,2518.7,8.37487]
[1725042697023,0.39704,2519.0,2518.7,4.77]
[1725042697224,0.00596338,2519.4,2518.7,4.77]
[1725042697225,0.00596338,2519.4,2518.8,3.9696]
[1725042697523,0.00596338,2519.4,2519.3,0.39699]
[1725042698019,0.00596338,2519.4,2519.3,4.36659]
[1725042698724,0.00596338,2519.4,2519.3,10.76419]
[1725042699116,0.00596338,2519.4,2519.3,4.36659]
[1725042699442,0.00596338,2519.4,2519.3,3.9696]
[1725042699928,0.00596338,2519.4,2519.3,13.57439]
[1725042700230,0.00596338,2519.4,2519.3,7.57439]
[1725042701123,3.2078,2520.9,2519.5,0.99239]
[1725042701321,0.39683,2520.4,2519.9,0.39688]
[1725042701634,0.9919,2520.8,2519.3,3.2078]
[1725042701635,3.2078,2520.3,2519.3,3.2078]
[1725042702125,3.2078,2520.3,2519.2,5.95]
[1725042702126,0.00595108,2520.1,2519.9,0.39689]
[1725042702327,0.00595108,2520.1,2519.9,3.968]
[1725042702537,0.00595108,2520.1,2520.0,0.39688]
[1725042702720,0.00595108,2520.1,2520.0,4.36488]
[1725042703424,0.00595108,2520.1,2520.0,10.36488]
[1725042704332,0.40282108,2520.1,2519.6,0.39694]
[1725042704830,0.40282108,2520.1,2519.7,0.39693]
[1725042705026,0.00595108,2520.1,2519.7,0.39693]
[1725042705223,0.00595108,2520.1,2520.0,0.39688]
[1725042705426,0.00595108,2520.1,2519.6,3.9688]
[1725042705736,0.00595108,2520.1,2520.0,0.39688]
[1725042706131,2.3199,2521.3,2520.0,0.39688]
[1725042706132,3.2078,2521.7,2520.0,6.0]
[1725042706322,3.60442,2521.7,2521.2,0.39668]
[1725042706632,0.99174,2521.2,2520.3,3.2078]
[1725042706835,0.99185,2520.9,2520.3,3.2078]
[1725042707133,0.99185,2520.9,2520.1,3.2078]
[1725042707134,0.39684,2520.3,2520.1,3.2078]
[1725042707429,3.21170708,2520.9,2520.2,3.968]
[1725042707430,4.55886555,2520.8,2520.2,3.968]
[1725042707730,0.39676,2520.8,2520.1,3.2078]
[1725042707927,3.60845708,2520.9,2520.4,0.39681]
[1725042708120,0.00390708,2520.9,2520.7,0.39676]
[1725042708326,0.00390708,2520.9,2520.8,0.39675]
[1725042708528,0.00390708,2520.9,2520.6,0.39678]
[1725042708733,0.00390708,2520.9,2520.4,3.2078]
[1725042708922,0.00390708,2520.9,2520.0,9.1578]
[1725042709122,0.39678,2520.7,2520.3,0.39683]
[1725042709331,0.39676,2520.8,2520.4,0.39681]
[1725042709521,0.00390708,2520.9,2520.0,9.1578]
[1725042709522,0.39677,2520.7,2520.0,9.1578]
[1725042709727,0.00390708,2520.9,2520.0,3.2078]
[1725042710033,0.00390708,2520.9,2520.3,0.39682]
[1725042710230,0.39686,2520.2,2520.0,3.2078]
[1725042710432,0.39684,2520.3,2519.7,3.2078]
[1725042710628,0.39686,2520.2,2519.8,0.3969]
[1725042710831,0.39686,2520.2,2519.8,0.39691]
[1725042711032,3.2078,2520.8,2519.7,3.2078]
[1725042711239,0.00390708,2520.9,2519.8,0.3969]
[1725042711240,0.39686,2520.2,2519.8,0.3969]
[1725042711441,0.99193,2520.7,2519.7,3.2078]
[1725042711736,3.2078,2520.6,2519.7,3.2078]
[1725042712041,0.39686,2520.2,2519.8,0.39691]
[1725042712238,0.99197,2520.7,2519.7,3.2078]
[1725042712239,4.19988,2520.4,2519.7,3.2078]
[1725042712539,4.19977,2520.7,2520.0,0.39687]
[1725042712739,4.19977,2520.7,2519.4,3.2078]
[1725042712740,4.95997,2520.6,2519.4,3.2078]
[1725042712927,0.9925,2519.3,2518.1,3.2078]
[1725042713128,3.2078,2518.6,2517.6,4.00265]
[1725042713436,2.1254,2520.5,2516.8,3.6054]
[1725042713437,3.2078,2518.3,2516.8,3.6054]
[1725042713635,5.95,2518.8,2516.5,0.3976]
[1725042713636,0.3973,2517.4,2516.5,0.3976]
[1725042713841,0.00595108,2517.2,2516.7,0.00595108]
[1725042714226,0.39738,2516.8,2516.7,0.00595108]
[1725042714445,0.00595108,2517.2,2516.7,0.00595108]
[1725042714631,0.39734,2517.1,2516.7,0.00595108]
[1725042714838,3.2078,2517.1,2516.8,0.3976]
[1725042715039,3.2078,2517.1,2516.7,0.00595108]
[1725042715040,3.60514,2517.1,2516.7,0.00595108]
[1725042715343,0.00595108,2517.2,2516.7,0.00595108]
[1725042715730,0.00595108,2517.2,2516.7,7.18655108]
[1725042715933,0.00595108,2517.2,2516.7,0.00595108]
[1725042716136,0.00595108,2517.2,2517.0,0.39735]
[1725042716534,0.00595108,2517.2,2516.7,0.00595108]
[1725042717046,0.00595108,2517.2,2516.8,0.39738]
[1725042717235,0.00595108,2517.2,2516.9,0.39737]
[1725042717435,0.00595108,2517.2,2516.8,0.39738]
[1725042717646,0.39735,2517.1,2516.7,0.00595108]
[1725042717835,3.2078,2517.1,2516.7,0.00595108]
[1725042718033,0.00595108,2517.2,2516.7,0.00595108]
[1725042718340,0.00595108,2517.2,2516.8,3.2078]
[1725042718544,0.39734,2517.1,2516.7,0.00595108]
[1725042718947,3.21375108,2517.2,2516.7,0.00595108]
[1725042719543,0.00595108,2517.2,2517.1,0.39734]
[1725042719745,1.08e-06,2517.2,2517.1,8.57129]
[1725042720048,1.08e-06,2517.2,2517.1,19.34129]
[1725042720247,1.08e-06,2517.2,2517.1,20.33464]
[1725042720636,3.2078,2518.7,2517.6,0.99313]
[1725042720835,2.3048,2519.2,2518.0,7.9778]
[1725042721041,2.3048,2519.2,2518.5,0.39711]
[1725042721042,0.39704,2519.1,2518.5,0.39711]
[1725042721239,2.3048,2519.2,2518.6,0.3971]
[1725042721439,2.3048,2519.2,2518.0,4.77]
[1725042721640,0.99222,2520.0,2517.8,0.99307]
[1725042721641,0.00390708,2518.9,2518.8,3.60487]
[1725042721838,7.08e-06,2518.9,2518.8,9.36755]
[1725042722036,7.08e-06,2518.9,2518.8,20.33063]
[1725042722234,3.2078,2520.5,2520.0,0.39687]
[1725042722438,2.1967,2520.6,2519.4,4.77]
[1725042722641,3.2078,2520.8,2519.4,4.77]
[1725042722642,3.2078,2520.8,2519.7,3.2078]
[1725042722843,3.2078,2520.8,2519.5,0.3976]
[1725042722844,0.39679,2520.6,2520.0,0.39687]
[1725042723046,7.58617462,2520.7,2519.5,0.3976]
[1725042723235,3.2078,2520.3,2519.8,0.00595108]
[1725042723437,3.60456,2520.8,2520.2,0.39684]
[1725042723838,3.2078,2520.8,2519.8,4.77595108]
[1725042724087,2.2479,2521.4,2520.4,3.2078]
[1725042724248,2.64457,2521.4,2520.4,3.2078]
[1725042724437,2.2479,2521.4,2520.4,3.2078]
[1725042724741,3.2078,2521.2,2520.4,3.2078]
[1725042725250,3.2078,2521.2,2520.1,3.60465]
[1725042725251,0.39678,2520.7,2520.1,3.60465]
[1725042725440,3.2078,2520.9,2520.1,3.60466]
[1725042725640,3.2078,2520.6,2520.1,3.2078]
[1725042725945,0.39682,2520.4,2519.9,0.3968]
[1725042726141,3.2078,2520.6,2519.9,0.3968]
[1725042726342,3.62629047,2523.8,2519.9,0.3968]
[1725042726343,5.5126,2521.5,2520.4,3.2078]
[1725042726651,0.39657,2522.0,2521.2,3.2078]
[1725042726953,3.60439,2521.9,2521.3,0.40263108]
[1725042727150,0.39662,2521.7,2521.3,0.00595108]
[1725042727347,3.60439,2521.9,2521.3,0.00595108]
[1725042727542,3.2078,2521.6,2521.3,0.00595108]
[1725042727852,3.2078,2522.1,2521.7,0.3966]
[1725042728052,2.123,2522.5,2522.2,0.39653]
[1725042728251,3.2078,2522.6,2521.6,4.77]
[1725042728252,3.2078,2522.6,2521.8,3.2078]
[1725042728455,0.9908,2523.6,2522.4,3.2078]
[1725042728456,3.2078,2523.0,2522.4,3.2078]
[1725042728646,3.2078,2523.0,2522.4,0.00595108]
[1725042728949,3.2078,2522.9,2522.4,0.00595108]
[1725042729347,3.60423,2522.9,2522.4,0.00595108]
[1725042729551,3.60427,2522.6,2522.4,0.00595108]
[1725042730053,3.60427,2522.6,2521.4,0.3968]
[1725042730054,3.964,2522.5,2521.4,3.6046]
[1725042730252,0.39655,2522.2,2521.6,0.39662]
[1725042730551,3.2078,2522.0,2521.4,3.60445]
[1725042730751,4.44491645,2522.5,2521.4,3.2078]
[1725042730951,0.00595108,2522.0,2521.4,3.21375108]
[1725042731251,0.39664,2521.5,2521.4,0.00595108]
[1725042731465,3.60444,2521.6,2521.4,0.00595108]
[1725042731755,0.39664,2521.5,2521.4,0.00595108]
[1725042731944,3.2078,2521.6,2521.4,0.00595108]
[1725042732150,0.3966,2521.8,2521.4,3.97155108]
[1725042732442,3.6044,2521.8,2521.4,0.00595108]
[1725042732847,3.2078,2521.8,2521.4,0.00595108]
[1725042733043,3.6044,2521.8,2521.4,0.00595108]
[1725042733649,3.60444,2521.5,2521.4,0.00595108]
[1725042733853,3.2078,2521.5,2521.4,0.00595108]
[1725042734153,13.57004,2521.5,2521.4,0.00595108]
[1725042734357,7.57004,2521.5,2521.4,0.00595108]
[1725042735256,17.46600378,2521.5,2520.2,3.2078]
[1725042735447,4.29260378,2521.5,2520.2,4.19991]
[1725042735648,4.19936,2521.7,2520.8,0.39675]
[1725042735649,0.3967,2521.2,2520.8,0.39675]
[1725042735858,0.99156,2521.7,2520.9,0.39674]
[1725042735859,3.2078,2521.1,2520.9,0.39674]
[1725042736158,3.2078,2521.1,2520.5,4.77]
[1725042736365,3.2078,2521.1,2520.5,4.77595108]
[1725042736549,3.2078,2521.1,2520.7,0.39677]
[1725042736550,3.60451,2521.1,2520.7,0.39677]
[1725042736749,3.60451,2521.1,2520.6,0.39678]
[1725042736750,0.39673,2521.0,2520.6,0.39678]
[1725042736961,3.2078,2521.1,2520.5,0.40275108]
[1725042736962,0.39674,2520.9,2520.5,0.40275108]
[1725042737154,3.2078,2520.8,2520.5,0.00595108]
[1725042737351,3.2078,2520.8,2519.9,3.2078]
[1725042737352,3.2078,2520.6,2519.9,3.2078]
[1725042737750,3.2078,2520.6,2520.4,0.39681]
[1725042738051,3.2078,2520.6,2519.9,3.2078]
[1725042738254,3.2078,2520.6,2520.3,0.39682]
[1725042738454,3.2078,2520.6,2520.2,0.00595108]
[1725042738647,0.39681,2520.5,2520.2,0.00595108]
[1725042738962,0.99217,2520.1,2518.6,3.2078]
[1725042739264,0.99217,2520.1,2518.5,4.77]
[1725042739265,3.2078,2519.1,2518.4,0.39713]
[1725042739467,3.2078,2518.8,2518.0,0.3976]
[1725042739648,0.39713,2518.5,2518.1,0.39718]
[1725042739853,3.2078,2518.6,2518.2,0.39716]
[1725042739854,3.61086108,2518.6,2518.2,0.39716]
[1725042740054,3.21375108,2518.6,2518.0,0.00595108]
[1725042740349,0.00595108,2518.6,2518.3,0.39714]
[1725042740551,0.39714,2518.4,2518.0,0.00595108]
[1725042740750,3.21375108,2518.6,2518.0,0.00595108]
[1725042740955,0.39713,2518.5,2518.1,0.39718]
[1725042741155,0.39713,2518.4,2518.0,0.40314108]
[1725042741348,0.39716,2518.2,2518.0,0.00595108]
[1725042741557,0.39718,2518.1,2518.0,0.00595108]
[1725042741758,3.2078,2518.2,2518.0,0.00595108]
[1725042742160,0.00595108,2518.6,2518.0,0.00595108]
[1725042742364,0.39718,2518.1,2518.0,0.00595108]
[1725042742554,10.20076,2518.1,2517.0,4.77]
[1725042742861,0.39727,2517.5,2517.1,0.39733]
[1725042743058,3.2078,2517.6,2517.0,5.16735]
[1725042743059,0.39729,2517.4,2517.0,5.16735]
[1725042743266,0.39728,2517.5,2517.0,5.16735]
[1725042743460,3.2078,2517.6,2517.0,4.77]
[1725042743760,0.39723,2517.8,2517.0,4.77595108]
[1725042743963,0.39727,2517.6,2517.1,0.39733]
[1725042744170,3.60505,2517.7,2517.2,0.39732]
[1725042744362,3.60505,2517.7,2517.1,0.39733]
[1725042744363,3.2078,2517.7,2517.1,0.39733]
[1725042744663,0.39733,2517.2,2517.0,0.00595108]
[1725042744871,0.39734,2517.1,2517.0,0.00595108]
[1725042745365,4.37014,2517.1,2517.0,0.00595108]
[1725042745865,3.9728,2517.1,2517.0,0.00595108]
[1725042746168,14.46908634,2517.1,2515.8,4.77]
[1725042746460,14.46908634,2517.1,2515.5,3.6054]